bitfinex-derivatives/quotes_ETHF0:USTF0_20250114
["timestamp","ask_amount","ask_price","bid_price","bid_amount"]
[1736867312475,1.07629896,3209.5,3209.1,4.2485]
[1736867312776,1.07629896,3209.5,3209.2,40.8]
[1736867312981,1.07629896,3209.3,3209.2,40.8]
[1736867313475,3.61018462,3209.7,3209.2,44.09823013]
[1736867313676,3.2078,3210.6,3209.6,3.29823013]
[1736867313868,1.07629896,3210.0,3209.9,3.2078]
[1736867314070,1.07629896,3210.4,3209.9,6.50603013]
[1736867314270,1.07629896,3210.1,3210.0,0.4753]
[1736867314875,1.07629896,3210.1,3210.0,41.2753]
[1736867315069,1.07629896,3210.1,3210.0,40.8]
[1736867315275,4.5663431,3210.1,3210.0,40.8]
[1736867315478,1.07629896,3210.1,3210.0,40.8]
[1736867316074,4.49483626,3210.1,3210.0,40.8]
[1736867316579,1.07629896,3210.1,3210.0,40.8]
[1736867316986,3.2078,3210.6,3210.0,40.8]
[1736867317277,3.55144579,3210.3,3210.0,40.8]
[1736867317478,3.55144579,3210.3,3210.0,44.09823013]
[1736867317676,3.2078,3210.6,3210.0,44.09823013]
[1736867317873,1.07629896,3210.5,3210.2,3.2078]
[1736867319583,0.5148,3211.0,3210.3,3.29823013]
[1736867319780,1.07629896,3210.7,3210.6,3.2078]
[1736867319977,3.29400411,3210.9,3210.6,3.2078]
[1736867320172,1.07629896,3211.1,3210.7,0.86692267]
[1736867320375,0.31148,3211.6,3211.0,3.2078]
[1736867320579,0.31148,3211.6,3211.1,40.8]
[1736867320580,3.2078,3211.6,3211.1,40.8]
[1736867320774,3.47116305,3211.3,3211.1,40.8]
[1736867320971,3.47116305,3211.3,3210.5,3.2078]
[1736867320972,0.31152,3211.1,3210.5,3.2078]
[1736867321178,3.47116305,3211.4,3210.5,3.2078]
[1736867321179,1.07629896,3210.7,3210.5,3.2078]
[1736867321475,1.07629896,3210.7,3210.6,40.8]
[1736867322483,0.31146,3211.8,3210.6,40.8]
[1736867322672,0.31148,3211.5,3210.9,3.2078]
[1736867322879,1.07629896,3211.0,3210.6,40.8]
[1736867323079,1.07629896,3210.9,3210.6,40.8]
[1736867325184,1.07629896,3210.8,3210.5,3.2078]
[1736867325385,1.07629896,3210.6,3210.0,3.2078]
[1736867325575,1.07629896,3210.1,3210.0,3.2078]
[1736867328884,0.4686,3210.9,3210.0,3.2078]
[1736867329088,3.2078,3211.2,3210.4,3.2078]
[1736867329383,0.4686,3211.5,3210.6,3.29823013]
[1736867329579,3.2078,3211.6,3210.9,3.2078]
[1736867329784,3.2078,3211.6,3211.0,0.973]
[1736867330081,3.2078,3211.6,3211.1,0.38487473]
[1736867330382,3.2078,3211.6,3211.2,0.38486974]
[1736867330591,3.2078,3211.6,3211.0,4.27123013]
[1736867330787,3.2078,3211.6,3211.1,0.38486251]
[1736867331081,2.84854683,3211.6,3211.4,3.29823013]
[1736867331779,2.84854683,3211.6,3211.5,0.3850206]
[1736867332087,3.2078,3212.1,3211.5,0.3850206]
[1736867332280,3.2078,3212.1,3211.4,3.29823013]
[1736867332478,3.2078,3212.1,3211.5,0.3851467]
[1736867332677,3.2078,3212.1,3211.4,3.29823013]
[1736867333592,0.4986,3212.3,3211.8,3.2078]
[1736867333981,3.44236372,3212.2,3211.8,3.2078]
[1736867334986,0.31143,3212.1,3211.4,3.2078]
[1736867335287,0.81001,3212.3,3211.4,3.2078]
[1736867335487,3.59666979,3212.0,3211.4,3.2078]
[1736867335881,0.81001,3212.3,3211.4,3.2078]
[1736867336189,3.56829712,3211.9,3211.4,3.2078]
[1736867336381,3.56829712,3212.0,3211.4,3.2078]
[1736867336581,0.31144,3212.0,3211.4,3.2078]
[1736867336788,3.33953508,3211.9,3211.4,3.2078]
[1736867338086,0.31146,3211.8,3211.4,3.2078]
[1736867338481,3.55847475,3211.7,3211.4,3.2078]
[1736867338682,0.31148,3211.6,3211.0,3.2078]
[1736867338882,0.4607,3211.5,3211.0,3.2078]
[1736867339191,4.02781702,3211.5,3211.0,3.2078]
[1736867339486,0.31149,3211.4,3211.0,3.2078]
[1736867339887,3.2564324,3211.3,3211.0,3.2078]
[1736867340288,3.60974013,3211.3,3210.5,40.8]
[1736867340590,4.0454839,3211.2,3210.7,3.2078]
[1736867340985,0.476,3211.2,3210.7,3.2078]
[1736867341292,3.5694839,3211.1,3210.7,3.2078]
[1736867341793,3.39759476,3211.2,3210.7,3.2078]
[1736867341994,0.494,3211.4,3210.7,3.2078]
[1736867342294,3.39759476,3211.1,3210.7,3.2078]
[1736867342587,0.3115,3211.3,3210.7,3.2078]
[1736867342989,3.81615747,3211.0,3210.7,3.2078]
[1736867343197,0.31153,3211.0,3210.7,3.2078]
[1736867343381,3.50462747,3210.9,3210.7,3.2078]
[1736867344093,3.30980161,3211.1,3210.7,3.2078]
[1736867344686,1e-08,3211.1,3210.7,3.2078]
[1736867344888,3.2078,3212.1,3211.0,0.31153]
[1736867345191,3.2078,3212.1,3210.9,3.29823013]
[1736867345192,3.40884979,3211.8,3211.3,3.2078]
[1736867345391,0.31147,3211.7,3211.3,3.2078]
[1736867345696,3.29823013,3211.8,3211.3,3.2078]
[1736867345893,3.03183688,3211.6,3211.3,3.2078]
[1736867346094,3.28924815,3211.7,3211.3,6.50603013]
[1736867346393,0.78498,3212.7,3211.4,41.2572]
[1736867346394,3.28924815,3212.0,3211.4,41.2572]
[1736867346587,3.28924815,3212.0,3211.7,3.2078]
[1736867346894,3.39503225,3212.4,3211.7,3.2078]
[1736867347091,3.6923,3212.6,3211.7,3.2078]
[1736867347291,3.39503225,3212.5,3211.7,3.2078]
[1736867347491,3.6923,3212.6,3211.7,3.2078]
[1736867347900,3.30035549,3212.5,3211.8,0.4841]
[1736867348487,1.43118552,3212.5,3212.1,6.50603013]
[1736867348698,4.59603013,3213.5,3212.1,6.50603013]
[1736867348896,1.2978,3213.5,3212.5,6.50603013]
[1736867349193,3.53700516,3213.1,3212.5,3.2078]
[1736867349495,0.3113,3213.4,3212.5,3.2078]
[1736867349883,3.26107018,3213.0,3212.5,3.2078]
[1736867350083,3.26107018,3213.3,3212.5,3.2078]
[1736867350393,0.9865,3213.5,3212.5,3.2078]
[1736867350589,3.26107018,3213.3,3212.6,0.9253]
[1736867350794,3.53071661,3213.4,3212.6,0.9253]
[1736867351093,0.9865,3213.5,3213.0,3.2078]
[1736867351288,3.53071661,3213.4,3213.0,3.2078]
[1736867351702,3.84201661,3213.4,3213.0,3.2078]
[1736867352401,3.29823013,3213.3,3213.0,3.2078]
[1736867352602,3.77043013,3213.3,3212.6,3.2078]
[1736867352796,0.31136,3212.9,3212.6,3.2078]
[1736867353301,0.31137,3212.7,3212.1,3.2078]
[1736867353694,3.5803651,3212.6,3212.1,3.2078]
[1736867354802,0.31139,3212.5,3211.7,3.2078]
[1736867355098,4.23193013,3212.7,3211.7,3.2078]
[1736867355099,3.2078,3212.4,3211.7,3.2078]
[1736867355297,3.37330307,3212.4,3211.7,3.6652]
[1736867355499,3.37330307,3212.5,3212.1,3.2078]
[1736867355694,1.24507,3212.7,3212.1,3.2078]
[1736867355895,0.31141,3212.3,3211.5,3.2078]
[1736867356090,0.31144,3212.1,3211.5,3.2078]
[1736867356497,0.31552867,3212.0,3211.5,3.2078]
[1736867356997,0.31145,3211.9,3211.5,3.2078]
[1736867357197,3.2078,3212.0,3211.5,3.2078]
[1736867357504,0.31148,3211.6,3211.5,3.2078]
[1736867357700,6.45594674,3212.0,3211.1,3.2078]
[1736867357701,3.24814674,3212.0,3211.1,3.2078]
[1736867357905,0.9568,3212.4,3211.5,3.2078]
[1736867358207,3.50713085,3211.7,3211.5,3.2078]
[1736867358503,3.29823013,3212.2,3211.5,3.2078]
[1736867359003,3.24616574,3212.1,3211.9,3.2078]
[1736867359408,3.55757574,3212.3,3211.9,3.2078]
[1736867359606,3.24616574,3212.2,3211.9,3.2078]
[1736867359814,0.31141,3212.3,3211.9,3.2078]
[1736867360097,3.31541787,3212.2,3211.9,3.2078]
[1736867360713,3.42357714,3212.3,3211.9,3.2078]
[1736867361005,3.42357714,3212.5,3211.9,3.2078]
[1736867361209,3.42357714,3212.2,3211.9,3.2078]
[1736867361596,3.42357714,3212.5,3212.0,0.4705]
[1736867361807,3.2078,3212.9,3212.4,3.2078]
[1736867362201,3.54537774,3212.8,3212.4,3.2078]
[1736867362807,0.3113,3213.4,3212.4,3.2078]
[1736867363002,0.3113,3213.4,3212.8,3.2078]
[1736867363202,3.57866413,3213.0,3212.8,3.2078]
[1736867363406,3.57866413,3213.0,3212.9,40.8]
[1736867363703,0.31133,3213.2,3212.9,40.8]
[1736867363897,3.49786309,3213.1,3212.8,3.2078]
[1736867364207,3.29823013,3213.3,3212.8,3.2078]
[1736867364407,0.31135,3212.9,3212.8,3.2078]
[1736867364903,3.68493077,3212.9,3212.8,3.2078]
[1736867365405,0.31138,3212.6,3212.3,3.2078]
[1736867365797,3.51695226,3212.5,3212.3,3.2078]
[1736867368109,4.28733013,3213.3,3212.3,3.2078]
[1736867368303,6.12964013,3213.3,3212.3,3.2078]
[1736867368505,3.50159461,3212.9,3212.3,3.2078]
[1736867368699,3.50159461,3213.2,3212.3,3.2078]
[1736867368907,3.60954013,3213.3,3212.3,3.2078]
[1736867369205,3.32109957,3212.8,3212.3,3.2078]
[1736867369508,3.60954013,3213.3,3212.3,3.2078]
[1736867369707,3.29823013,3213.3,3212.3,3.2078]
[1736867369909,3.54285693,3212.8,3212.3,3.2078]
[1736867370109,0.31134,3213.1,3212.3,3.2078]
[1736867370310,3.32851409,3213.0,3212.3,3.2078]
[1736867370508,3.54285693,3212.7,3212.3,3.2078]
[1736867370711,0.31131,3213.3,3212.3,3.2078]
[1736867370910,3.52216305,3213.2,3212.3,3.2078]
[1736867371113,3.52216305,3212.9,3212.3,3.2078]
[1736867371513,3.52216305,3213.1,3212.3,3.2078]
[1736867371711,0.31131,3213.3,3212.8,3.2078]
[1736867372113,3.28465946,3213.0,3212.8,3.2078]
[1736867372309,3.28465946,3213.2,3212.9,0.4542]
[1736867372516,3.28465946,3213.3,3212.9,0.4542]
[1736867372708,0.31129,3213.5,3212.9,0.4542]
[1736867373116,3.41064935,3213.2,3212.9,0.4542]
[1736867373311,3.41064935,3213.4,3212.9,0.4542]
[1736867373511,0.31129,3213.5,3212.9,0.4542]
[1736867373718,3.41064935,3213.2,3212.9,0.4542]
[1736867373910,3.5356678,3213.4,3212.9,0.4542]
[1736867374217,0.31129,3213.5,3212.9,0.4542]
[1736867374417,3.5356678,3213.4,3212.9,0.4542]
[1736867375215,0.31131,3213.3,3212.9,0.4542]
[1736867375716,3.3603904,3213.2,3212.9,0.4542]
[1736867376709,3.3603904,3213.2,3212.1,3.29823013]
[1736867376710,0.31133,3213.1,3212.4,3.2078]
[1736867376911,3.51914,3213.0,3212.4,3.2078]
[1736867377121,3.24807304,3213.0,3212.4,3.2078]
[1736867377618,3.24807304,3213.1,3212.4,3.2078]
[1736867377820,0.79802,3213.2,3212.4,3.2078]
[1736867378115,3.40191297,3213.1,3212.4,3.2078]
[1736867378920,0.31137,3212.7,3212.4,3.2078]
[1736867379111,0.31135,3212.9,3212.4,3.2078]
[1736867379312,3.57413019,3212.6,3212.5,40.8]
[1736867379818,0.4867,3213.2,3212.5,40.8]
[1736867380219,3.41188541,3212.8,3212.5,40.8]
[1736867380422,3.41188541,3213.1,3212.5,40.8]
[1736867380611,3.41188541,3213.2,3212.5,40.8]
[1736867381017,0.31131,3213.3,3212.5,40.8]
[1736867381214,0.4524,3213.5,3212.5,40.8]
[1736867381420,0.31134,3213.0,3212.4,3.2078]
[1736867381720,2.95150766,3212.9,3212.4,3.2078]
[1736867383118,0.31136,3212.8,3212.4,3.2078]
[1736867383514,3.25347284,3212.7,3212.4,3.2078]
[1736867383812,0.31138,3212.6,3212.4,3.2078]
[1736867384018,3.0158048,3212.6,3212.4,3.2078]
[1736867384219,3.28136892,3212.5,3212.4,3.2078]
[1736867384415,3.28136892,3212.5,3212.0,3.6783]
[1736867385023,0.3114,3212.4,3212.0,3.6783]
[1736867385325,3.39430649,3212.3,3212.0,3.6783]
[1736867386622,3.39430649,3212.3,3212.0,3.2078]
[1736867387628,0.31138,3212.6,3212.0,3.2078]
[1736867387629,0.70405448,3212.6,3212.0,3.2078]
[1736867387822,3.50397557,3212.4,3212.0,3.2078]
[1736867388126,3.43506816,3212.5,3212.0,3.2078]
[1736867388327,0.39276316,3212.6,3212.0,3.2078]
[1736867388622,3.43506816,3212.5,3212.0,3.2078]
[1736867390329,0.3114,3212.4,3212.0,3.2078]
[1736867390925,3.2078,3212.2,3211.6,3.7087]
[1736867391125,0.31147,3211.7,3211.6,3.2078]
[1736867391315,3.27817986,3212.0,3211.6,3.2078]
[1736867391316,1.529,3211.9,3211.6,3.2078]
[1736867391516,2.99968416,3211.7,3211.6,3.2078]
[1736867391820,3.87737306,3211.8,3211.5,0.02223]
[1736867392326,0.31146,3211.8,3211.5,0.02223]
[1736867392526,3.56591306,3211.7,3211.5,0.02223]
[1736867394521,3.56591306,3211.7,3211.6,3.2078]
[1736867394729,0.31146,3211.8,3211.6,3.2078]
[1736867394925,3.27358644,3211.7,3211.6,3.2078]
[1736867395224,0.31146,3211.8,3211.5,0.02223]
[1736867395419,3.27358644,3211.7,3211.5,0.02223]
[1736867396217,0.31148,3211.6,3211.5,0.02223]
[1736867396625,3.67942316,3211.6,3211.5,0.02223]
[1736867397324,3.67942316,3211.6,3211.5,40.82223]
[1736867397714,3.67942316,3211.6,3211.5,0.02223]
[1736867397921,3.67942316,3211.6,3210.8,3.2078]
[1736867397922,0.31153,3211.1,3210.8,3.2078]
[1736867398129,0.31153,3211.1,3210.9,40.8]
[1736867398319,3.25838624,3211.0,3210.9,40.8]
[1736867398816,3.25838624,3211.0,3210.8,3.2078]
[1736867401222,3.97186,3211.8,3210.9,0.4615]
[1736867401421,6.79743986,3211.8,3211.2,3.2078]
[1736867401728,3.52353899,3211.4,3211.2,3.2078]
[1736867402035,3.58966986,3211.5,3211.2,3.2078]
[1736867402225,3.5603906,3211.4,3211.2,3.2078]
[1736867402424,0.3115,3211.3,3211.2,3.2078]
[1736867402822,3.57529604,3211.3,3210.9,0.4615]
[1736867403126,0.31149,3211.5,3211.0,40.8]
[1736867403424,6.8534959,3211.2,3210.9,0.4615]
[1736867403620,4.36848986,3211.2,3210.8,3.2078]
[1736867403830,3.27817986,3210.9,3210.8,3.2078]
[1736867404122,0.43059039,3211.2,3210.8,3.2078]
[1736867404328,0.75292637,3210.9,3210.8,3.2078]
[1736867404529,3.24554257,3211.1,3210.8,3.2078]
[1736867404732,3.27817986,3210.9,3210.8,3.2078]
[1736867405031,0.31152,3211.1,3210.8,3.2078]
[1736867405226,1.84151,3211.3,3210.8,3.2078]
[1736867405427,1.84151,3211.3,3210.9,0.4692]
[1736867405723,3.49440228,3211.2,3210.9,0.4692]
[1736867405930,3.51926,3211.8,3210.9,0.4692]
[1736867406126,2.70664352,3211.6,3211.2,3.2078]
[1736867406323,3.33248377,3211.6,3211.2,3.2078]
[1736867406534,2.70664352,3211.3,3211.2,3.2078]
[1736867406828,6.27063182,3211.3,3211.2,3.2078]
[1736867407021,6.74033945,3211.3,3211.2,3.2078]
[1736867407226,0.31163,3210.1,3209.7,3.2078]
[1736867407420,3.01829352,3209.8,3209.3,3.2078]
[1736867407621,0.31169,3209.4,3209.3,3.2078]
[1736867408227,3.81338179,3209.4,3209.3,3.2078]
[1736867408427,0.31175,3208.8,3208.5,5.11266744]
[1736867408732,0.3118,3208.3,3208.1,3.2078]
[1736867408930,2.70664352,3208.2,3207.6,0.20461515]
[1736867409126,0.31182,3208.1,3207.6,0.20461515]
[1736867409729,3.45340826,3208.0,3207.6,0.20461515]
[1736867409922,2.70664352,3207.8,3207.6,0.20461515]
[1736867410128,2.70664352,3207.8,3207.0,3.2078]
[1736867410129,0.31186,3207.6,3207.0,3.2078]
[1736867410330,2.70664352,3207.2,3207.0,3.2078]
[1736867410630,3.45340826,3207.1,3207.0,3.2078]
[1736867411927,3.31841131,3207.3,3207.0,3.2078]
[1736867412330,3.28878089,3207.7,3207.0,3.2078]
[1736867412628,6.6071922,3207.7,3207.4,3.2078]
[1736867412929,3.31841131,3207.7,3207.4,3.2078]
[1736867413329,3.25970671,3207.9,3207.4,3.2078]
[1736867413932,3.28878089,3208.0,3207.4,3.2078]
[1736867414130,3.36966253,3207.9,3207.4,3.2078]
[1736867414738,3.28878089,3207.7,3207.4,3.2078]
[1736867415125,3.26989407,3207.6,3207.4,3.2078]
[1736867415726,3.26989407,3207.7,3207.4,3.2078]
[1736867415927,3.26989407,3207.9,3207.4,3.2078]
[1736867416230,0.31184,3207.8,3207.4,3.2078]
[1736867416733,3.5148745,3207.7,3207.4,3.2078]
[1736867417126,3.51697659,3207.8,3207.4,3.2078]
[1736867417430,0.31184,3207.9,3207.1,41.2774]
[1736867417631,3.51697659,3207.7,3207.1,41.2774]
[1736867417827,3.51697659,3207.7,3207.4,3.2078]
[1736867418137,0.31184,3207.9,3207.4,3.2078]
[1736867418338,3.40822903,3207.6,3207.1,41.2774]
[1736867418541,3.40822903,3207.7,3207.4,3.2078]
[1736867418727,0.31184,3207.9,3207.4,3.2078]
[1736867419225,3.28878089,3207.6,3207.4,3.2078]
[1736867419436,3.24600396,3207.8,3207.4,3.2078]
[1736867419735,3.24600396,3207.5,3207.4,3.2078]
[1736867420137,3.27796547,3208.1,3207.4,3.2078]
[1736867420444,3.28878089,3208.2,3207.4,3.2078]
[1736867420632,3.27796547,3208.1,3207.4,3.2078]
[1736867421636,3.28878089,3207.8,3207.4,3.2078]
[1736867422040,3.62968775,3207.7,3207.4,3.2078]
[1736867422239,3.28878089,3207.5,3207.4,3.2078]
[1736867422439,4.81878089,3207.5,3207.4,3.2078]
[1736867422643,8.13661864,3207.5,3207.4,3.2078]
[1736867423037,8.13661864,3207.5,3206.7,3.2078]
[1736867423038,11.98206709,3207.5,3206.7,3.2078]
[1736867423243,3.28878089,3207.0,3206.7,3.2078]
[1736867423636,3.55598736,3206.9,3206.7,3.2078]
[1736867424437,3.86791736,3206.9,3206.7,3.2078]
[1736867424644,3.55598736,3206.9,3206.7,3.2078]
[1736867425038,4.19345599,3206.9,3206.7,3.2078]
[1736867426941,4.19345599,3206.9,3206.1,3.2078]
[1736867426942,3.2078,3206.8,3206.1,3.2078]
[1736867427240,0.31198,3206.4,3205.7,3.2078]
[1736867427446,3.60081089,3205.9,3205.7,3.2078]
[1736867427837,3.37002501,3205.8,3205.7,3.2078]
[1736867428148,4.25938124,3205.8,3205.7,3.2078]
[1736867428644,3.56513815,3205.8,3205.7,3.2078]
[1736867428837,4.25938124,3205.8,3205.7,1.84202203]
[1736867429043,4.0642681,3205.8,3205.7,1.84202203]
[1736867432639,4.0642681,3205.8,3205.7,42.64202203]
[1736867432838,3.37002501,3205.8,3205.7,42.64202203]
[1736867433243,3.28878089,3205.9,3205.7,42.64202203]
[1736867433446,0.31204,3205.8,3205.1,3.2078]
[1736867433647,3.28878089,3205.6,3205.1,3.2078]
[1736867434044,3.38163735,3205.5,3205.1,3.2078]
[1736867434243,4.07588044,3205.5,3205.1,3.2078]
[1736867434747,3.38163735,3205.5,3205.1,3.2078]
[1736867434947,0.69424309,3205.9,3205.1,3.2078]
[1736867435243,3.28373283,3205.7,3205.1,3.2078]
[1736867435452,0.69424309,3205.8,3205.1,3.2078]
[1736867435746,0.69424309,3205.8,3205.0,0.4535]
[1736867435747,9.78031372,3205.6,3205.0,0.4535]
[1736867435949,0.69424309,3205.5,3205.0,0.4535]
[1736867436244,4.07059084,3205.5,3205.0,0.4535]
[1736867437651,5.60159084,3205.5,3205.0,0.4535]
[1736867437846,0.69424309,3205.4,3205.0,0.4535]
[1736867438350,3.43396337,3205.3,3205.0,0.4535]
[1736867441053,0.69424309,3205.4,3205.2,3.2078]
[1736867441351,0.54534054,3206.2,3205.3,3.28878089]
[1736867441651,3.5976614,3206.4,3206.0,3.2078]
[1736867441840,3.5976614,3206.4,3206.1,0.5101]
[1736867442043,3.50629737,3206.6,3206.1,0.5101]
[1736867442240,3.12590439,3206.8,3206.1,0.5101]
[1736867442447,0.5264,3206.9,3206.4,3.2078]
[1736867442651,3.9927,3207.3,3206.4,3.2078]
[1736867442957,3.58318658,3206.9,3206.5,0.4835]
[1736867443354,3.28878089,3206.8,3206.4,3.2078]
[1736867443649,3.28878089,3206.5,3206.1,0.5101]
[1736867443846,3.28878089,3206.8,3206.1,0.5101]
[1736867444047,3.44463327,3206.4,3206.1,0.5101]
[1736867444246,3.44463327,3206.7,3206.1,0.5101]
[1736867444551,3.44463327,3206.8,3206.1,0.5101]
[1736867444955,5.34618089,3207.1,3206.1,0.5101]
[1736867445154,3.37027801,3206.7,3206.1,0.5101]
[1736867445456,6.6590589,3206.8,3206.1,0.5101]
[1736867445650,3.28878089,3206.8,3206.1,0.5101]
[1736867445850,3.37027801,3206.7,3206.1,0.5101]
[1736867446860,3.37027801,3206.7,3206.3,3.2078]
[1736867447251,3.2078,3207.3,3206.3,3.2078]
[1736867447454,3.28878089,3207.0,3206.7,3.2078]
[1736867447762,3.28878089,3207.0,3206.1,0.5101]
[1736867447763,3.39128237,3206.9,3206.2,3.2078]
[1736867448256,3.39128237,3206.9,3206.1,0.5101]
[1736867448257,3.28878089,3206.7,3206.1,0.5101]
[1736867448654,3.31690257,3206.6,3206.1,0.5101]
[1736867449162,3.28878089,3206.4,3205.8,3.2078]
[1736867449365,6.49658089,3206.4,3205.8,3.2078]
[1736867449552,3.41959567,3206.3,3205.8,3.2078]
[1736867451063,3.2078,3207.0,3206.2,3.2078]
[1736867451455,3.48967821,3206.7,3206.2,3.2078]
[1736867451662,3.2078,3207.5,3206.9,0.31193]
[1736867451871,3.2078,3207.5,3207.1,3.2078]
[1736867452065,3.30444065,3207.4,3207.1,3.2078]
[1736867452262,3.83656991,3207.4,3207.2,40.8]
[1736867452463,3.30444065,3207.4,3207.2,40.8]
[1736867452966,3.82569355,3207.4,3207.2,40.8]
[1736867453162,3.30444065,3207.4,3207.2,40.8]
[1736867453368,0.5212529,3207.7,3207.2,40.8]
[1736867453564,2.00104911,3207.6,3207.2,40.8]
[1736867453765,2.52230201,3207.6,3207.2,40.8]
[1736867454063,2.00104911,3207.6,3207.1,3.2078]
[1736867454269,6.49658089,3207.5,3207.1,3.2078]
[1736867454467,0.5212529,3207.4,3207.1,3.2078]
[1736867454662,3.88328245,3207.4,3207.1,3.2078]
[1736867454969,3.36202955,3207.4,3207.1,3.2078]
[1736867455963,3.30126203,3207.5,3207.1,3.2078]
[1736867456458,1.02972688,3207.6,3207.1,3.2078]
[1736867456660,3.28878089,3207.3,3207.1,3.2078]
[1736867457064,3.34414353,3207.2,3207.1,3.2078]
[1736867458471,0.5087,3207.6,3207.1,3.2078]
[1736867458874,3.42188968,3207.4,3207.1,3.2078]
[1736867459177,0.5087,3207.6,3207.1,3.2078]
[1736867459466,3.53505539,3207.3,3207.1,3.2078]
[1736867459774,0.5087,3207.6,3207.1,3.2078]
[1736867460071,3.40274975,3207.3,3207.2,40.8]
[1736867460477,3.28878089,3207.6,3207.2,40.8]
[1736867460666,0.31191,3207.2,3206.5,3.2078]
[1736867460868,3.28878089,3206.6,3206.0,3.2078]
[1736867461165,3.28878089,3206.2,3206.0,3.2078]
[1736867461361,3.60078089,3206.2,3205.7,4.87473652]
[1736867461563,3.28878089,3205.9,3205.7,4.87473652]
[1736867461969,3.4518973,3205.8,3205.5,40.8]
[1736867462370,3.28878089,3205.9,3205.5,40.8]
[1736867462576,3.80902551,3205.9,3205.5,40.8]
[1736867462779,3.60223047,3205.8,3205.5,40.8]
[1736867463080,3.60223047,3205.8,3205.7,3.2078]
[1736867463671,3.28878089,3206.3,3205.7,3.2078]
[1736867463874,1.529,3206.6,3205.7,3.2078]
[1736867464075,3.39186119,3206.2,3205.7,3.2078]
[1736867464270,7.20094469,3206.3,3205.7,3.2078]
[1736867464474,3.28878089,3206.3,3205.7,3.2078]
[1736867464675,1.62334933,3206.5,3205.8,0.5413]
[1736867465170,3.59871665,3206.3,3205.8,0.5413]
[1736867466872,3.59871665,3206.3,3206.1,3.2078]
[1736867467073,3.29009669,3206.4,3206.1,3.2078]
[1736867467277,1.62334933,3206.5,3205.8,0.5413]
[1736867467774,3.29009669,3206.4,3206.2,3.2078]
[1736867467973,0.52024933,3206.5,3206.2,3.2078]
[1736867468273,0.52024933,3206.5,3206.2,3.5198]
[1736867468773,0.52024933,3206.5,3206.3,40.8]
[1736867468974,1.57271606,3207.2,3206.4,0.31198]
[1736867468975,1.0524,3207.2,3206.4,0.31198]
[1736867469276,3.51544297,3207.1,3206.9,3.2078]
[1736867469469,4.57314297,3207.1,3206.9,3.2078]
[1736867470175,4.57314297,3207.1,3206.5,44.0078]
[1736867470478,4.57314297,3207.1,3206.9,3.2078]
[1736867470678,3.51544297,3207.1,3206.9,3.2078]
[1736867470873,0.5277,3207.9,3207.1,0.31191]
[1736867471173,3.3566077,3207.8,3207.7,3.2078]
[1736867472073,5.04858,3208.5,3207.7,3.2078]
[1736867472074,3.81878089,3208.8,3207.7,3.2078]
[1736867472275,4.37098089,3208.8,3208.2,3.2078]
[1736867472579,3.35923209,3208.4,3208.2,3.2078]
[1736867472876,3.28878089,3208.5,3208.2,3.2078]
[1736867473177,3.40125493,3208.3,3208.2,3.2078]
[1736867473474,3.28878089,3208.5,3208.2,3.2078]
[1736867473681,3.28878089,3208.5,3207.6,3.2078]
[1736867473875,3.28878089,3208.2,3207.6,3.2078]
[1736867474177,3.49058874,3208.1,3207.6,3.2078]
[1736867474878,3.28878089,3208.5,3208.0,3.2078]
[1736867475078,4.37098089,3208.8,3208.0,3.2078]
[1736867475277,3.41933969,3208.5,3208.0,3.2078]
[1736867475477,3.41933969,3208.7,3208.0,44.0078]
[1736867475784,1.0822,3208.8,3208.0,44.0078]
[1736867476081,3.41933969,3208.7,3208.0,44.0078]
[1736867477074,3.28878089,3208.5,3208.0,3.2078]
[1736867477474,3.57704344,3208.4,3208.0,3.2078]
[1736867478880,4.37098089,3208.8,3208.0,3.2078]
[1736867479076,3.25920566,3208.7,3208.0,3.2078]
[1736867479280,4.37098089,3208.8,3208.0,3.2078]
[1736867479671,3.28878089,3208.4,3208.0,3.2078]
[1736867479872,3.60060089,3208.1,3207.5,3.2078]
[1736867480076,2.5862,3208.0,3207.5,3.2078]
[1736867480382,3.97493355,3208.0,3207.9,3.2078]
[1736867480583,0.5179,3208.0,3207.9,3.2078]
[1736867480786,3.97493355,3208.0,3207.9,3.2078]
[1736867481279,7.26371444,3208.0,3207.9,3.2078]
[1736867481485,7.26371444,3208.0,3207.5,3.2078]
[1736867481978,3.28878089,3207.6,3207.5,3.2078]
[1736867482284,0.5179,3208.0,3207.5,3.2078]
[1736867482484,2.34834891,3207.6,3207.5,3.2078]
[1736867482682,1.527,3208.3,3207.5,3.2078]
[1736867482886,3.46376025,3208.2,3208.0,3.2078]
[1736867483082,3.7491,3208.4,3208.0,3.2078]
[1736867483675,0.5188,3208.6,3208.0,3.2078]
[1736867483874,0.5188,3208.6,3208.4,3.2078]
[1736867484186,3.85168089,3209.3,3208.4,3.2078]
[1736867484478,3.60115683,3209.2,3208.9,3.2078]
[1736867485887,0.31167,3209.6,3209.0,40.8]
[1736867486387,3.28878089,3209.4,3208.5,3.2078]
[1736867486587,3.34140189,3209.5,3208.5,3.2078]
[1736867486779,3.34140189,3209.3,3208.9,3.2078]
[1736867487088,3.50749745,3209.5,3208.9,3.2078]
[1736867487287,3.81917745,3209.6,3208.9,3.2078]
[1736867487581,0.31168,3209.6,3208.6,40.8]
[1736867487775,3.50749745,3209.5,3208.6,40.8]
[1736867487979,3.28878089,3209.4,3208.6,40.8]
[1736867488181,3.28878089,3209.1,3208.5,3.2078]
[1736867488478,3.39914062,3209.0,3208.5,3.2078]
[1736867488678,2.87794062,3209.0,3208.5,3.2078]
[1736867488885,0.5212,3209.3,3208.5,3.2078]
[1736867489082,0.5212,3209.3,3208.9,3.2078]
[1736867489286,3.2078,3209.5,3208.9,3.2078]
[1736867489585,3.44963881,3209.4,3209.3,3.2078]
[1736867489881,3.44963881,3209.8,3209.3,3.2078]
[1736867490280,3.39031049,3209.9,3209.3,3.2078]
[1736867490480,3.2078,3210.0,3209.3,3.2078]
[1736867490882,3.39031049,3209.9,3209.3,3.2078]
[1736867491183,3.24768121,3210.1,3209.8,3.2078]
[1736867491586,1.0541,3210.2,3209.8,3.2078]